[Event "Live Chess"]
[Site "Chess.com"]
[Date "2024.06.02"]
[Round "-"]
[White "Pandreq"]
[Black "ProfPoisson"]
[Result "0-1"]
[WhiteElo "1232"]
[BlackElo "1353"]
[TimeControl "300"]
[EndTime "8:00:54 PDT"]
[Termination "ProfPoisson won by checkmate"]

1. d4 {[%clk 0:04:58.6]} 1... e6 {[%clk 0:04:56.4]} 2. c4 {[%clk 0:04:57.3]}
2... f5 {[%clk 0:04:53.4]} 3. a3 {[%clk 0:04:55]} 3... Nf6 {[%clk 0:04:51.9]} 4.
Nc3 {[%clk 0:04:54.2]} 4... Be7 {[%clk 0:04:42.3]} 5. Nf3 {[%clk 0:04:53.6]}
5... b6 {[%clk 0:04:40.5]} 6. Bf4 {[%clk 0:04:51.1]} 6... Bb7 {[%clk 0:04:39.6]}
7. Nb5 {[%clk 0:04:49.2]} 7... d6 {[%clk 0:04:25.4]} 8. e3 {[%clk 0:04:38]} 8...
a6 {[%clk 0:04:21.4]} 9. Nc3 {[%clk 0:04:36.6]} 9... Nbd7 {[%clk 0:04:13.4]} 10.
Be2 {[%clk 0:04:28.2]} 10... Ne4 {[%clk 0:03:56.2]} 11. Nxe4 {[%clk 0:04:25.7]}
11... Bxe4 {[%clk 0:03:54.4]} 12. O-O {[%clk 0:04:20.9]} 12... g5 {[%clk
0:03:47.4]} 13. Bg3 {[%clk 0:04:04.8]} 13... h5 {[%clk 0:03:44.5]} 14. h4 {[%clk
0:03:59.4]} 14... gxh4 {[%clk 0:03:39.8]} 15. Nxh4 {[%clk 0:03:48.2]} 15... Bxh4
{[%clk 0:03:37.8]} 16. Bxh4 {[%clk 0:03:47]} 16... Qxh4 {[%clk 0:03:34.5]} 17.
Bf3 {[%clk 0:03:40.2]} 17... O-O-O {[%clk 0:03:28.5]} 18. Qa4 {[%clk 0:03:33.4]}
18... Bxf3 {[%clk 0:03:23.1]} 19. Qxa6+ {[%clk 0:03:24.5]} 19... Kb8 {[%clk
0:03:21.4]} 20. Rfb1 {[%clk 0:03:08.5]} 20... Bxg2 {[%clk 0:03:10.7]} 21. Kxg2
{[%clk 0:03:04.9]} 21... Rhg8+ {[%clk 0:03:07.6]} 22. Kf1 {[%clk 0:03:04]} 22...
Qh3+ {[%clk 0:02:47.5]} 23. Ke2 {[%clk 0:02:59.4]} 23... Qg4+ {[%clk 0:02:30.7]}
24. Kd2 {[%clk 0:02:51.7]} 24... Qf3 {[%clk 0:02:22.6]} 25. Rf1 {[%clk
0:02:45.7]} 25... Rg2 {[%clk 0:02:18.7]} 26. Ke1 {[%clk 0:02:44.5]} 26... Rdg8
{[%clk 0:02:02]} 27. Kd2 {[%clk 0:02:36.9]} 27... Rxf2+ {[%clk 0:01:56.7]} 28.
Rxf2 {[%clk 0:02:35.9]} 28... Qxf2+ {[%clk 0:01:55.4]} 29. Kd3 {[%clk
0:02:34.6]} 29... Rg3 {[%clk 0:01:46]} 30. Kc3 {[%clk 0:02:23.6]} 30... Qxe3+
{[%clk 0:01:42.1]} 31. Kb4 {[%clk 0:02:21.7]} 31... Qb3# {[%clk 0:01:40]} 0-1

[Event "Live Chess"]
[Site "Chess.com"]
[Date "2024.06.02"]
[Round "-"]
[White "Vladyslav2008"]
[Black "imchessive"]
[Result "0-1"]
[WhiteElo "2254"]
[BlackElo "1609"]
[TimeControl "300"]
[EndTime "8:00:57 PDT"]
[Termination "imchessive won by checkmate"]

1. d4 {[%clk 0:04:56.4]} 1... f5 {[%clk 0:04:58.7]} 2. c4 {[%clk 0:04:51.5]}
2... d6 {[%clk 0:04:57.7]} 3. g3 {[%clk 0:04:50.3]} 3... Nf6 {[%clk 0:04:56.6]}
4. Bg2 {[%clk 0:04:49.2]} 4... c6 {[%clk 0:04:55.8]} 5. Nc3 {[%clk 0:04:47.6]}
5... g6 {[%clk 0:04:55.1]} 6. Nh3 {[%clk 0:04:45.9]} 6... Bg7 {[%clk 0:04:54.4]}
7. f3 {[%clk 0:04:44.6]} 7... O-O {[%clk 0:04:53.7]} 8. Nf2 {[%clk 0:04:43.8]}
8... e5 {[%clk 0:04:50.3]} 9. e3 {[%clk 0:04:36.3]} 9... exd4 {[%clk 0:04:36.8]}
10. exd4 {[%clk 0:04:35]} 10... Re8+ {[%clk 0:04:35.3]} 11. Kf1 {[%clk
0:04:30.5]} 11... Be6 {[%clk 0:04:24.1]} 12. d5 {[%clk 0:04:23]} 12... cxd5
{[%clk 0:04:22.9]} 13. cxd5 {[%clk 0:04:21.8]} 13... Bd7 {[%clk 0:04:19.4]} 14.
h4 {[%clk 0:04:19.1]} 14... Qb6 {[%clk 0:04:12.4]} 15. Qc2 {[%clk 0:04:10.1]}
15... Bb5+ {[%clk 0:04:10.2]} 16. Kg1 {[%clk 0:04:03.6]} 16... Re1+ {[%clk
0:04:04.5]} 17. Kh2 {[%clk 0:04:02.5]} 17... Rxh1+ {[%clk 0:04:03.5]} 18. Bxh1
{[%clk 0:03:57.4]} 18... Nbd7 {[%clk 0:03:47.9]} 19. Bf4 {[%clk 0:03:52]} 19...
Re8 {[%clk 0:03:44.8]} 20. Bg2 {[%clk 0:03:43.5]} 20... Re2 {[%clk 0:03:29.7]}
21. Nxe2 {[%clk 0:03:41.8]} 21... Qxf2 {[%clk 0:03:28.8]} 22. Qc8+ {[%clk
0:03:36.3]} 22... Kf7 {[%clk 0:03:18.9]} 23. Ng1 {[%clk 0:03:29]} 23... Nxd5
{[%clk 0:03:06.3]} 24. Bxd6 {[%clk 0:03:12.9]} 24... Ne3 {[%clk 0:03:02.6]} 25.
Qc2 {[%clk 0:02:49.4]} 25... Qxc2 {[%clk 0:03:00.8]} 26. Ne2 {[%clk 0:02:46.5]}
26... Qxe2 {[%clk 0:02:59.4]} 27. Rg1 {[%clk 0:02:45.1]} 27... Nxg2 {[%clk
0:02:57.7]} 28. Rxg2 {[%clk 0:02:43.9]} 28... Qxf3 {[%clk 0:02:57.1]} 29. Bf4
{[%clk 0:02:42.2]} 29... Bf1 {[%clk 0:02:55.8]} 30. Rd2 {[%clk 0:02:40.7]} 30...
Be2 {[%clk 0:02:54.3]} 31. Rxd7+ {[%clk 0:02:39.2]} 31... Kf6 {[%clk 0:02:52.7]}
32. Bg5+ {[%clk 0:02:23.3]} 32... Ke6 {[%clk 0:02:50.9]} 33. Re7+ {[%clk
0:02:22.4]} 33... Kd5 {[%clk 0:02:50.1]} 34. Be3 {[%clk 0:02:19.9]} 34... Qf1
{[%clk 0:02:48.4]} 35. Rxg7 {[%clk 0:02:09.5]} 35... Bf3 {[%clk 0:02:46.9]} 36.
Rd7+ {[%clk 0:02:04.8]} 36... Kc6 {[%clk 0:02:45.8]} 37. Rd2 {[%clk 0:02:00.9]}
37... Qe1 {[%clk 0:02:33]} 38. Bf4 {[%clk 0:01:55.5]} 38... Qh1# {[%clk
0:02:27.5]} 0-1

[Event "Live Chess"]
[Site "Chess.com"]
[Date "2024.06.02"]
[Round "-"]
[White "booktrunk"]
[Black "JohanKjeldahl"]
[Result "0-1"]
[WhiteElo "1491"]
[BlackElo "1803"]
[TimeControl "300"]
[EndTime "8:01:01 PDT"]
[Termination "JohanKjeldahl won by checkmate"]

1. d4 {[%clk 0:04:53.4]} 1... Nf6 {[%clk 0:04:58]} 2. Nc3 {[%clk 0:04:53.3]}
2... d5 {[%clk 0:04:55.7]} 3. Bf4 {[%clk 0:04:52.8]} 3... c6 {[%clk 0:04:54.2]}
4. Nf3 {[%clk 0:04:49.5]} 4... Nbd7 {[%clk 0:04:53.2]} 5. h3 {[%clk 0:04:47.2]}
5... g6 {[%clk 0:04:52]} 6. Bh2 {[%clk 0:04:45.9]} 6... Bg7 {[%clk 0:04:51.2]}
7. e3 {[%clk 0:04:42.7]} 7... O-O {[%clk 0:04:50.5]} 8. Bd3 {[%clk 0:04:41.5]}
8... a5 {[%clk 0:04:46.7]} 9. Qe2 {[%clk 0:04:38.9]} 9... Ne8 {[%clk 0:04:37.5]}
10. e4 {[%clk 0:04:37.2]} 10... dxe4 {[%clk 0:04:33.7]} 11. Nxe4 {[%clk
0:04:35.6]} 11... Ndf6 {[%clk 0:04:31.4]} 12. Nxf6+ {[%clk 0:04:34.1]} 12...
Nxf6 {[%clk 0:04:28.8]} 13. c3 {[%clk 0:04:33.8]} 13... Nd5 {[%clk 0:04:26.4]}
14. O-O {[%clk 0:04:31]} 14... b5 {[%clk 0:04:19.2]} 15. Rfe1 {[%clk 0:04:28.6]}
15... Ra7 {[%clk 0:04:14.5]} 16. Be4 {[%clk 0:04:25.9]} 16... Be6 {[%clk
0:04:09.6]} 17. Bd3 {[%clk 0:04:24.3]} 17... Qd7 {[%clk 0:04:01.7]} 18. Ne5
{[%clk 0:04:19.2]} 18... Bxe5 {[%clk 0:03:55.5]} 19. Bxe5 {[%clk 0:04:16.2]}
19... Bf5 {[%clk 0:03:46]} 20. Bxf5 {[%clk 0:04:13.1]} 20... Qxf5 {[%clk
0:03:44.9]} 21. g4 {[%clk 0:04:02]} 21... Qd7 {[%clk 0:03:37.3]} 22. Qf3 {[%clk
0:03:55.6]} 22... f6 {[%clk 0:03:34.2]} 23. Bg3 {[%clk 0:03:52.9]} 23... a4
{[%clk 0:03:18.2]} 24. Qe2 {[%clk 0:03:49.8]} 24... a3 {[%clk 0:03:15.9]} 25.
Reb1 {[%clk 0:03:45.2]} 25... axb2 {[%clk 0:03:12.3]} 26. Rxb2 {[%clk
0:03:42.9]} 26... Nxc3 {[%clk 0:03:09.6]} 27. Qc2 {[%clk 0:03:37.5]} 27... Nd5
{[%clk 0:02:54.1]} 28. Rc1 {[%clk 0:03:34.5]} 28... Ra6 {[%clk 0:02:48.6]} 29.
Kg2 {[%clk 0:03:27.5]} 29... Kg7 {[%clk 0:02:43.2]} 30. Re1 {[%clk 0:03:23.1]}
30... Rfa8 {[%clk 0:02:31.9]} 31. Re2 {[%clk 0:03:11.8]} 31... Ra3 {[%clk
0:02:27.2]} 32. Kf1 {[%clk 0:02:58]} 32... Rc3 {[%clk 0:02:24.9]} 33. Qd2 {[%clk
0:02:54.4]} 33... Raa3 {[%clk 0:02:23]} 34. Kg2 {[%clk 0:02:44.5]} 34... b4
{[%clk 0:02:10.8]} 35. Kh2 {[%clk 0:02:36.1]} 35... Qa7 {[%clk 0:02:02.4]} 36.
Kg2 {[%clk 0:02:20.9]} 36... Rd3 {[%clk 0:02:01]} 37. Qc2 {[%clk 0:02:18.3]}
37... Rac3 {[%clk 0:01:53.4]} 38. Qb1 {[%clk 0:02:12.6]} 38... Qxd4 {[%clk
0:01:51.8]} 39. Rb3 {[%clk 0:02:02.4]} 39... Rd1 {[%clk 0:01:41.4]} 40. Qb2
{[%clk 0:01:58.4]} 40... Rcc1 {[%clk 0:01:31.5]} 41. Qxd4 {[%clk 0:01:51.7]}
41... Rxd4 {[%clk 0:01:30]} 42. a3 {[%clk 0:01:47.3]} 42... bxa3 {[%clk
0:01:26.7]} 43. Rxa3 {[%clk 0:01:45.7]} 43... e5 {[%clk 0:01:17.2]} 44. Bh2
{[%clk 0:01:42.1]} 44... Nf4+ {[%clk 0:01:10.9]} 45. Bxf4 {[%clk 0:01:38.8]}
45... Rxf4 {[%clk 0:01:09.7]} 46. f3 {[%clk 0:01:33.5]} 46... Rb4 {[%clk
0:01:02.9]} 47. h4 {[%clk 0:01:28.1]} 47... Rb7 {[%clk 0:00:56.1]} 48. Rd2
{[%clk 0:01:25.3]} 48... h5 {[%clk 0:00:54.4]} 49. gxh5 {[%clk 0:01:22.1]} 49...
gxh5 {[%clk 0:00:53.5]} 50. Rad3 {[%clk 0:01:16.5]} 50... Kg6 {[%clk 0:00:52.4]}
51. Rd6 {[%clk 0:01:12.7]} 51... c5 {[%clk 0:00:49.4]} 52. R2d5 {[%clk
0:01:09.1]} 52... Kf5 {[%clk 0:00:44.9]} 53. Rc6 {[%clk 0:01:07.6]} 53... Rb2+
{[%clk 0:00:40.1]} 54. Kg3 {[%clk 0:01:02.2]} 54... Rg1+ {[%clk 0:00:37.8]} 55.
Kh3 {[%clk 0:01:01.2]} 55... Rgg2 {[%clk 0:00:28.5]} 56. f4 {[%clk 0:00:53.6]}
56... Kxf4 {[%clk 0:00:23.3]} 57. Rxf6+ {[%clk 0:00:51.1]} 57... Ke4 {[%clk
0:00:22.5]} 58. Rd1 {[%clk 0:00:47.7]} 58... Rh2+ {[%clk 0:00:20.5]} 59. Kg3
{[%clk 0:00:45.4]} 59... Rbg2# {[%clk 0:00:19.5]} 0-1

[Event "Live Chess"]
[Site "Chess.com"]
[Date "2024.06.02"]
[Round "-"]
[White "lateforthesky"]
[Black "Zhevzh1k7"]
[Result "1-0"]
[WhiteElo "2080"]
[BlackElo "1112"]
[TimeControl "300"]
[EndTime "8:01:09 PDT"]
[Termination "lateforthesky won by checkmate"]

1. e4 {[%clk 0:04:56.2]} 1... c6 {[%clk 0:04:59.2]} 2. Nf3 {[%clk 0:04:51.7]}
2... d5 {[%clk 0:04:58.4]} 3. exd5 {[%clk 0:04:51]} 3... cxd5 {[%clk 0:04:56.2]}
4. Ne5 {[%clk 0:04:50.6]} 4... Nc6 {[%clk 0:04:53.4]} 5. d4 {[%clk 0:04:49.2]}
5... Qa5+ {[%clk 0:04:46.1]} 6. c3 {[%clk 0:04:42.7]} 6... Bf5 {[%clk
0:04:40.4]} 7. Nd2 {[%clk 0:04:33.9]} 7... e6 {[%clk 0:04:37.4]} 8. Ndf3 {[%clk
0:04:25.6]} 8... Bd6 {[%clk 0:04:33.5]} 9. Nxc6 {[%clk 0:04:15.1]} 9... bxc6
{[%clk 0:04:31.4]} 10. Bd3 {[%clk 0:04:14]} 10... Bxd3 {[%clk 0:04:29.2]} 11.
Qxd3 {[%clk 0:04:13.1]} 11... Ne7 {[%clk 0:04:26.7]} 12. O-O {[%clk 0:04:11.2]}
12... O-O {[%clk 0:04:25.1]} 13. a4 {[%clk 0:04:01.5]} 13... c5 {[%clk
0:04:15.3]} 14. dxc5 {[%clk 0:03:57.1]} 14... Qxc5 {[%clk 0:04:14.8]} 15. Be3
{[%clk 0:03:53.7]} 15... Qc6 {[%clk 0:04:08.6]} 16. Rfe1 {[%clk 0:03:46.7]}
16... Rab8 {[%clk 0:04:03.7]} 17. b4 {[%clk 0:03:44.8]} 17... a6 {[%clk
0:04:00.9]} 18. Nd4 {[%clk 0:03:27.7]} 18... Qc4 {[%clk 0:03:55.4]} 19. Qxc4
{[%clk 0:03:26.6]} 19... dxc4 {[%clk 0:03:54.4]} 20. a5 {[%clk 0:03:18.7]} 20...
Rfd8 {[%clk 0:03:42.4]} 21. Red1 {[%clk 0:03:08.4]} 21... Be5 {[%clk 0:03:39]}
22. f4 {[%clk 0:03:04]} 22... Bxd4 {[%clk 0:03:34.1]} 23. Rxd4 {[%clk
0:02:53.8]} 23... Rxd4 {[%clk 0:03:27.8]} 24. Bxd4 {[%clk 0:02:52.8]} 24... Nc6
{[%clk 0:03:26.1]} 25. Bc5 {[%clk 0:02:46.4]} 25... Rd8 {[%clk 0:03:17]} 26. Kf2
{[%clk 0:02:31.6]} 26... Rd3 {[%clk 0:03:11.6]} 27. b5 {[%clk 0:02:30.1]} 27...
axb5 {[%clk 0:03:09.5]} 28. a6 {[%clk 0:02:29]} 28... Rxc3 {[%clk 0:02:53.2]}
29. a7 {[%clk 0:02:27.2]} 29... Rc2+ {[%clk 0:02:52]} 30. Kf1 {[%clk 0:02:20.9]}
30... Nxa7 {[%clk 0:02:45.3]} 31. Rxa7 {[%clk 0:02:18.3]} 31... h6 {[%clk
0:02:43.9]} 32. Ra8+ {[%clk 0:02:13.6]} 32... Kh7 {[%clk 0:02:42.2]} 33. Rb8
{[%clk 0:02:12.6]} 33... Rb2 {[%clk 0:02:36.7]} 34. Bd4 {[%clk 0:02:02.8]} 34...
Rb4 {[%clk 0:02:33.1]} 35. h4 {[%clk 0:01:50.1]} 35... Kg6 {[%clk 0:02:29.1]}
36. g4 {[%clk 0:01:48.2]} 36... Rb1+ {[%clk 0:02:23.6]} 37. Kf2 {[%clk
0:01:45.7]} 37... b4 {[%clk 0:02:21.1]} 38. h5+ {[%clk 0:01:42.8]} 38... Kh7
{[%clk 0:02:19.1]} 39. Rb7 {[%clk 0:01:41.7]} 39... e5 {[%clk 0:01:51.2]} 40.
Bxe5 {[%clk 0:01:36.5]} 40... f6 {[%clk 0:01:47.1]} 41. Bxf6 {[%clk 0:01:35.2]}
41... Kg8 {[%clk 0:01:44.5]} 42. Bxg7 {[%clk 0:01:27.9]} 42... b3 {[%clk
0:01:35.1]} 43. g5 {[%clk 0:01:23.1]} 43... hxg5 {[%clk 0:01:32.9]} 44. fxg5
{[%clk 0:01:21.8]} 44... Rc1 {[%clk 0:01:24]} 45. h6 {[%clk 0:01:13.1]} 45... c3
{[%clk 0:01:19.5]} 46. Rxb3 {[%clk 0:01:09.2]} 46... c2 {[%clk 0:01:17.1]} 47.
Rc3 {[%clk 0:01:07]} 47... Kh7 {[%clk 0:01:12.7]} 48. Ke2 {[%clk 0:01:00.5]}
48... Kg6 {[%clk 0:01:11.3]} 49. Kd2 {[%clk 0:00:58.8]} 49... Rg1 {[%clk
0:01:05.7]} 50. Kxc2 {[%clk 0:00:50.8]} 50... Rxg5 {[%clk 0:01:03.7]} 51. Rc6+
{[%clk 0:00:44.5]} 51... Kh7 {[%clk 0:01:00.4]} 52. Kd3 {[%clk 0:00:43.4]} 52...
Rd5+ {[%clk 0:00:55.8]} 53. Ke4 {[%clk 0:00:42.1]} 53... Rb5 {[%clk 0:00:53.6]}
54. Kf4 {[%clk 0:00:36.9]} 54... Rb4+ {[%clk 0:00:51.4]} 55. Kf5 {[%clk
0:00:34.9]} 55... Rb5+ {[%clk 0:00:50.3]} 56. Be5 {[%clk 0:00:33.6]} 56... Rb7
{[%clk 0:00:45.3]} 57. Re6 {[%clk 0:00:32.4]} 57... Rf7+ {[%clk 0:00:43.6]} 58.
Kg5 {[%clk 0:00:31.4]} 58... Rf8 {[%clk 0:00:40.5]} 59. Re7+ {[%clk 0:00:29.7]}
59... Kg8 {[%clk 0:00:37.9]} 60. Rg7+ {[%clk 0:00:28.7]} 60... Kh8 {[%clk
0:00:36.4]} 61. Rf7+ {[%clk 0:00:26.7]} 61... Kg8 {[%clk 0:00:35.5]} 62. Rxf8+
{[%clk 0:00:25.5]} 62... Kxf8 {[%clk 0:00:34.7]} 63. h7 {[%clk 0:00:24.5]} 63...
Ke7 {[%clk 0:00:33]} 64. h8=Q {[%clk 0:00:23.5]} 64... Kf7 {[%clk 0:00:32.3]}
65. Qf6+ {[%clk 0:00:22.4]} 65... Ke8 {[%clk 0:00:31.3]} 66. Qg7 {[%clk
0:00:20]} 66... Kd8 {[%clk 0:00:30.2]} 67. Bd6 {[%clk 0:00:17.8]} 67... Kc8
{[%clk 0:00:30.1]} 68. Qc7# {[%clk 0:00:16.3]} 1-0

[Event "Live Chess"]
[Site "Chess.com"]
[Date "2024.06.02"]
[Round "-"]
[White "juniortay"]
[Black "upoe610"]
[Result "0-1"]
[WhiteElo "2285"]
[BlackElo "2161"]
[TimeControl "300"]
[EndTime "8:01:23 PDT"]
[Termination "upoe610 won by resignation"]

1. e4 {[%clk 0:04:56.1]} 1... e5 {[%clk 0:04:58.7]} 2. Nc3 {[%clk 0:04:50.9]}
2... Nf6 {[%clk 0:04:57.4]} 3. f4 {[%clk 0:04:48.1]} 3... d5 {[%clk 0:04:56.5]}
4. fxe5 {[%clk 0:04:47]} 4... Nxe4 {[%clk 0:04:55.9]} 5. d3 {[%clk 0:04:44.6]}
5... Nxc3 {[%clk 0:04:53.2]} 6. bxc3 {[%clk 0:04:43.1]} 6... d4 {[%clk
0:04:53.1]} 7. Nf3 {[%clk 0:04:41.6]} 7... dxc3 {[%clk 0:04:52]} 8. Be2 {[%clk
0:04:40.2]} 8... Bc5 {[%clk 0:04:49.7]} 9. d4 {[%clk 0:04:37.6]} 9... Bb6 {[%clk
0:04:48.6]} 10. O-O {[%clk 0:04:36]} 10... Nc6 {[%clk 0:04:47.6]} 11. Be3 {[%clk
0:04:34.4]} 11... Bg4 {[%clk 0:04:46.1]} 12. Bb5 {[%clk 0:04:25.1]} 12... O-O
{[%clk 0:04:43.3]} 13. Bxc6 {[%clk 0:04:23.3]} 13... bxc6 {[%clk 0:04:43.2]} 14.
h3 {[%clk 0:04:19.5]} 14... Bxf3 {[%clk 0:04:41.9]} 15. Rxf3 {[%clk 0:04:17.7]}
15... Qd5 {[%clk 0:04:40.9]} 16. Qd3 {[%clk 0:04:09.3]} 16... Rad8 {[%clk
0:04:38.4]} 17. Rd1 {[%clk 0:04:02.6]} 17... c5 {[%clk 0:04:36.9]} 18. dxc5
{[%clk 0:03:48.7]} 18... Qxd3 {[%clk 0:04:25.5]} 19. Rxd3 {[%clk 0:03:46.6]}
19... Rxd3 {[%clk 0:04:19.9]} 20. cxd3 {[%clk 0:03:36.9]} 20... Ba5 {[%clk
0:04:12.9]} 21. d4 {[%clk 0:03:26.9]} 21... Rb8 {[%clk 0:04:10]} 22. Bc1 {[%clk
0:03:11.1]} 22... Rb1 {[%clk 0:04:06.5]} 23. Rf1 {[%clk 0:03:09.9]} 23... c2
{[%clk 0:04:03.1]} 24. Kf2 {[%clk 0:03:02.9]} 24... Bc3 {[%clk 0:04:01.6]} 25.
Ke2 {[%clk 0:03:00.2]} 25... Bxd4 {[%clk 0:03:57.9]} 26. Kd3 {[%clk 0:02:53.9]}
26... Bxe5 {[%clk 0:03:52.3]} 27. Kxc2 {[%clk 0:02:51.6]} 27... Rb5 {[%clk
0:03:50.8]} 28. Be3 {[%clk 0:02:48.1]} 28... f6 {[%clk 0:03:49.5]} 29. Rd1
{[%clk 0:02:45.2]} 29... Rb2+ {[%clk 0:03:46.3]} 30. Kd3 {[%clk 0:02:42.2]}
30... Rxg2 {[%clk 0:03:43.5]} 31. Ke4 {[%clk 0:02:40.5]} 31... Rxa2 {[%clk
0:03:40.6]} 32. Rc1 {[%clk 0:02:37.9]} 32... Kf7 {[%clk 0:03:38]} 33. Rb1 {[%clk
0:02:33.7]} 33... Ke6 {[%clk 0:03:36.4]} 34. Rb8 {[%clk 0:02:26.2]} 34... Ra4+
{[%clk 0:03:33]} 35. Kf3 {[%clk 0:02:24.2]} 35... Kf5 {[%clk 0:03:31.7]} 36. h4
{[%clk 0:02:14.3]} 36... h5 {[%clk 0:03:29]} 37. Rg8 {[%clk 0:02:10.9]} 37... g6
{[%clk 0:03:26.8]} 38. c6 {[%clk 0:02:04]} 38... Ra3 {[%clk 0:03:25.3]} 39. Ke2
{[%clk 0:02:01.2]} 39... Ke4 {[%clk 0:03:20.7]} 40. Bd2 {[%clk 0:01:59.1]} 40...
Ra2 {[%clk 0:03:19.8]} 41. Kd1 {[%clk 0:01:56.3]} 41... Kd3 {[%clk 0:03:18.8]}
42. Rd8+ {[%clk 0:01:45]} 42... Bd4 {[%clk 0:03:17.6]} 43. Bc1 {[%clk
0:01:40.9]} 43... Rg2 {[%clk 0:03:15.9]} 44. Bd2 {[%clk 0:01:33.1]} 44... Rxd2+
{[%clk 0:03:13.1]} 0-1

[Event "Live Chess"]
[Site "Chess.com"]
[Date "2024.06.02"]
[Round "-"]
[White "Cruiseylee78"]
[Black "HoarseyHorsey"]
[Result "0-1"]
[WhiteElo "1686"]
[BlackElo "1523"]
[TimeControl "300"]
[EndTime "8:01:25 PDT"]
[Termination "HoarseyHorsey won by checkmate"]

1. d4 {[%clk 0:04:59]} 1... Nf6 {[%clk 0:04:58.5]} 2. Bf4 {[%clk 0:04:58]} 2...
d5 {[%clk 0:04:57.8]} 3. e3 {[%clk 0:04:57.2]} 3... Bf5 {[%clk 0:04:56.6]} 4.
Bd3 {[%clk 0:04:56.1]} 4... Bg6 {[%clk 0:04:55]} 5. Nf3 {[%clk 0:04:54.7]} 5...
e6 {[%clk 0:04:54.1]} 6. c3 {[%clk 0:04:53.9]} 6... c5 {[%clk 0:04:52.8]} 7.
Bxg6 {[%clk 0:04:52.4]} 7... hxg6 {[%clk 0:04:51.5]} 8. h3 {[%clk 0:04:51.2]}
8... cxd4 {[%clk 0:04:48.4]} 9. exd4 {[%clk 0:04:50.3]} 9... Nc6 {[%clk
0:04:47.3]} 10. Qc2 {[%clk 0:04:49.5]} 10... Bd6 {[%clk 0:04:46]} 11. Bg5 {[%clk
0:04:46.5]} 11... Qc7 {[%clk 0:04:41.6]} 12. Nbd2 {[%clk 0:04:44.4]} 12... O-O-O
{[%clk 0:04:39.1]} 13. b4 {[%clk 0:04:42.9]} 13... e5 {[%clk 0:04:36.1]} 14.
dxe5 {[%clk 0:04:34.1]} 14... Nxe5 {[%clk 0:04:36]} 15. Nxe5 {[%clk 0:04:32.9]}
15... Bxe5 {[%clk 0:04:34.8]} 16. Rc1 {[%clk 0:04:25.7]} 16... Rde8 {[%clk
0:04:32.6]} 17. O-O {[%clk 0:04:23.8]} 17... Ne4 {[%clk 0:04:26.8]} 18. Nxe4
{[%clk 0:04:20.2]} 18... dxe4 {[%clk 0:04:26.7]} 19. c4 {[%clk 0:04:16.7]} 19...
f6 {[%clk 0:04:24.2]} 20. Be3 {[%clk 0:04:13.1]} 20... f5 {[%clk 0:04:21.4]} 21.
Bxa7 {[%clk 0:04:07.2]} 21... f4 {[%clk 0:04:18.6]} 22. Qxe4 {[%clk 0:04:01.7]}
22... Bb2 {[%clk 0:04:15.5]} 23. Qxg6 {[%clk 0:03:49.2]} 23... Bxc1 {[%clk
0:04:12.8]} 24. Rxc1 {[%clk 0:03:49.1]} 24... f3 {[%clk 0:04:04.7]} 25. g4
{[%clk 0:03:44.7]} 25... Rxh3 {[%clk 0:03:59.3]} 26. Qf5+ {[%clk 0:03:35.7]}
26... Qd7 {[%clk 0:03:55]} 27. Qxd7+ {[%clk 0:03:29.1]} 27... Kxd7 {[%clk
0:03:54.9]} 28. Rd1+ {[%clk 0:03:28]} 28... Kc6 {[%clk 0:03:52.7]} 29. b5+
{[%clk 0:03:24.4]} 29... Kc7 {[%clk 0:03:51.3]} 30. Be3 {[%clk 0:03:19.9]} 30...
Rh4 {[%clk 0:03:40]} 31. g5 {[%clk 0:03:16.9]} 31... Rg4+ {[%clk 0:03:36.9]} 32.
Kh2 {[%clk 0:03:15.9]} 32... Rh8# {[%clk 0:03:35]} 0-1

[Event "Live Chess"]
[Site "Chess.com"]
[Date "2024.06.02"]
[Round "-"]
[White "dmitro74"]
[Black "nitrofish07"]
[Result "0-1"]
[WhiteElo "1745"]
[BlackElo "2082"]
[TimeControl "300"]
[EndTime "8:01:42 PDT"]
[Termination "nitrofish07 won on time"]

1. d4 {[%clk 0:04:57.1]} 1... d5 {[%clk 0:04:59.3]} 2. c4 {[%clk 0:04:56.5]}
2... c6 {[%clk 0:04:58.4]} 3. Nc3 {[%clk 0:04:55.4]} 3... Nf6 {[%clk 0:04:57.3]}
4. cxd5 {[%clk 0:04:54.4]} 4... cxd5 {[%clk 0:04:56.7]} 5. Nf3 {[%clk
0:04:53.3]} 5... Nc6 {[%clk 0:04:56.2]} 6. Bg5 {[%clk 0:04:51.8]} 6... a6 {[%clk
0:04:55.6]} 7. a4 {[%clk 0:04:50]} 7... e6 {[%clk 0:04:54.7]} 8. e3 {[%clk
0:04:48.4]} 8... h6 {[%clk 0:04:51.4]} 9. Bh4 {[%clk 0:04:47.1]} 9... Be7 {[%clk
0:04:49.2]} 10. Bd3 {[%clk 0:04:45.1]} 10... O-O {[%clk 0:04:48.1]} 11. O-O
{[%clk 0:04:43.3]} 11... Bd7 {[%clk 0:04:46.4]} 12. Rc1 {[%clk 0:04:40.7]} 12...
Rc8 {[%clk 0:04:44.8]} 13. b3 {[%clk 0:04:30.5]} 13... Re8 {[%clk 0:04:39.1]}
14. Bb1 {[%clk 0:04:20.8]} 14... Nb4 {[%clk 0:04:34.6]} 15. Qd2 {[%clk
0:04:11.9]} 15... g5 {[%clk 0:04:29.5]} 16. Bg3 {[%clk 0:04:08.9]} 16... Kg7
{[%clk 0:04:29.2]} 17. Ne5 {[%clk 0:03:58.1]} 17... Rh8 {[%clk 0:04:21.7]} 18.
Nxd7 {[%clk 0:03:54.6]} 18... Qxd7 {[%clk 0:04:20.7]} 19. Be5 {[%clk 0:03:53]}
19... Nc6 {[%clk 0:04:13.7]} 20. f4 {[%clk 0:03:48.8]} 20... Nxe5 {[%clk
0:04:05.5]} 21. fxe5 {[%clk 0:03:46.7]} 21... Ne4 {[%clk 0:04:03.1]} 22. Nxe4
{[%clk 0:03:41.6]} 22... dxe4 {[%clk 0:04:03]} 23. Bxe4 {[%clk 0:03:38.3]} 23...
Rxc1 {[%clk 0:04:00.1]} 24. Rxc1 {[%clk 0:03:36.2]} 24... Rc8 {[%clk 0:04:00]}
25. Rc4 {[%clk 0:03:29.6]} 25... Rxc4 {[%clk 0:03:58.4]} 26. bxc4 {[%clk
0:03:28.5]} 26... Qxa4 {[%clk 0:03:58]} 27. Qc1 {[%clk 0:03:23.5]} 27... Ba3
{[%clk 0:03:51.2]} 28. Qf1 {[%clk 0:03:15.5]} 28... Be7 {[%clk 0:03:47.3]} 29.
c5 {[%clk 0:02:58.9]} 29... Qb3 {[%clk 0:03:38.5]} 30. Qc1 {[%clk 0:02:43.5]}
30... a5 {[%clk 0:03:33.3]} 31. Bc2 {[%clk 0:02:41.7]} 31... Qb4 {[%clk
0:03:29.4]} 32. Kf2 {[%clk 0:02:38.5]} 32... a4 {[%clk 0:03:26.3]} 33. Ke2
{[%clk 0:02:20.7]} 33... a3 {[%clk 0:03:22.9]} 34. Qa1 {[%clk 0:02:11.4]} 34...
Bd8 {[%clk 0:03:13.6]} 35. Qb1 {[%clk 0:01:54.3]} 35... Qc3 {[%clk 0:02:53.8]}
36. Bd3 {[%clk 0:01:33.8]} 36... Ba5 {[%clk 0:02:49.6]} 37. Qa2 {[%clk
0:01:15.9]} 37... Qe1+ {[%clk 0:02:37.9]} 38. Kf3 {[%clk 0:01:14.7]} 38... Qd1+
{[%clk 0:02:30.4]} 39. Be2 {[%clk 0:01:12.8]} 39... Qc1 {[%clk 0:02:26.3]} 40.
Bc4 {[%clk 0:01:05.8]} 40... g4+ {[%clk 0:02:07.6]} 41. Kxg4 {[%clk 0:01:02.7]}
41... Qxe3 {[%clk 0:02:06.3]} 42. g3 {[%clk 0:00:54.3]} 42... Qxd4+ {[%clk
0:02:04]} 43. Kh3 {[%clk 0:00:53.6]} 43... Qxc5 {[%clk 0:01:59.8]} 44. Bxe6
{[%clk 0:00:49.3]} 44... fxe6 {[%clk 0:01:56.7]} 45. Qxe6 {[%clk 0:00:47.7]}
45... Bb4 {[%clk 0:01:54.9]} 46. Qg4+ {[%clk 0:00:43.2]} 46... Kh7 {[%clk
0:01:52.6]} 47. Qf5+ {[%clk 0:00:41.8]} 47... Kh8 {[%clk 0:01:49.1]} 48. Qf6+
{[%clk 0:00:39.7]} 48... Kg8 {[%clk 0:01:48.6]} 49. e6 {[%clk 0:00:34.2]} 49...
Qe7 {[%clk 0:01:46.1]} 50. Qg6+ {[%clk 0:00:31.6]} 50... Qg7 {[%clk 0:01:42.5]}
51. Qe8+ {[%clk 0:00:27]} 51... Kh7 {[%clk 0:01:41.9]} 52. Qb5 {[%clk
0:00:17.4]} 52... a2 {[%clk 0:01:39.7]} 53. Qd3+ {[%clk 0:00:10.3]} 53... Kh8
{[%clk 0:01:38.4]} 54. Qd8+ {[%clk 0:00:06.4]} 54... Bf8 {[%clk 0:01:37.6]} 0-1